bitfinex-derivatives/quotes_BTCF0:USTF0_20250121
["timestamp","ask_amount","ask_price","bid_price","bid_amount"]
[1737498298871,0.49657938,106440.0,106430.0,0.03094062]
[1737498299070,0.38534622,106440.0,106430.0,0.03094062]
[1737498299270,0.4409628,106440.0,106430.0,0.03094062]
[1737498299874,0.49657938,106440.0,106430.0,0.03094062]
[1737498300168,0.4409628,106440.0,106430.0,0.03094062]
[1737498300366,0.35504622,106440.0,106430.0,0.57962762]
[1737498300870,0.4106628,106440.0,106430.0,0.57962762]
[1737498301171,0.16717622,106440.0,106430.0,2.07962762]
[1737498302165,0.2227928,106440.0,106430.0,2.07962762]
[1737498302379,0.16717622,106440.0,106430.0,2.07962762]
[1737498302558,0.2227928,106440.0,106430.0,2.07962762]
[1737498303670,0.16717622,106440.0,106430.0,2.07962762]
[1737498304466,0.2227928,106440.0,106430.0,2.07962762]
[1737498304769,0.16717622,106440.0,106430.0,2.07962762]
[1737498305170,0.2227928,106440.0,106430.0,2.07962762]
[1737498305562,0.16821124,106440.0,106430.0,2.24765524]
[1737498307363,0.11259466,106440.0,106430.0,2.25386468]
[1737498307565,0.16821124,106440.0,106430.0,2.25386468]
[1737498308067,0.11259466,106440.0,106430.0,2.25386468]
[1737498308473,0.16821124,106440.0,106430.0,2.25386468]
[1737498309064,0.11259466,106440.0,106430.0,2.25386468]
[1737498312381,0.4673144,106440.0,106430.0,0.16816824]
[1737498312675,0.187887,106430.0,106420.0,0.58437821]
[1737498312865,0.24350358,106430.0,106420.0,0.58437821]
[1737498313272,0.24350358,106430.0,106420.0,0.77228321]
[1737498313968,0.24350358,106430.0,106420.0,0.77528321]
[1737498314976,0.24350358,106430.0,106420.0,0.77628321]
[1737498315365,0.3842469,106430.0,106420.0,0.5528]
[1737498315764,0.3842469,106430.0,106420.0,0.5518]
[1737498315980,0.3842469,106430.0,106420.0,0.5488]
[1737498318380,0.3842469,106430.0,106420.0,2.0488]
[1737498318972,0.14074332,106430.0,106420.0,2.0488]
[1737498319375,0.14074332,106430.0,106420.0,2.4096]
[1737498319578,0.1963599,106430.0,106420.0,2.45465535]
[1737498319776,0.14074332,106430.0,106420.0,2.4096]
[1737498320678,0.14074332,106430.0,106420.0,2.46521658]
[1737498320975,0.14074332,106430.0,106420.0,2.510271]
[1737498321175,0.19671778,106430.0,106420.0,2.41086646]
[1737498321376,0.14065332,106440.0,106430.0,0.187887]
[1737498321582,0.14065332,106440.0,106430.0,0.645987]
[1737498322680,0.14465332,106440.0,106430.0,0.73071835]
[1737498323381,0.51424456,106460.0,106430.0,1.08168473]
[1737498323382,0.00140966,106460.0,106430.0,1.08168473]
[1737498323583,0.00140966,106460.0,106450.0,0.548652]
[1737498323883,0.187823,106470.0,106460.0,0.187834]
[1737498324068,0.187823,106470.0,106460.0,0.220034]
[1737498324584,0.19481487,106470.0,106460.0,0.220034]
[1737498325280,0.190823,106470.0,106460.0,0.220034]
[1737498325476,0.003,106470.0,106460.0,0.580834]
[1737498326374,0.01,106470.0,106460.0,0.66656535]
[1737498326583,0.01,106470.0,106460.0,0.581834]
[1737498326883,0.00014062,106480.0,106470.0,0.187817]
[1737498327086,0.00014062,106480.0,106470.0,0.548617]
[1737498327678,0.00014062,106480.0,106470.0,0.63334835]
[1737498327884,0.00014062,106480.0,106470.0,0.66621778]
[1737498328182,0.00314062,106480.0,106470.0,0.66621778]
[1737498328984,0.01014062,106480.0,106470.0,0.66721778]
[1737498329484,0.00914062,106480.0,106470.0,2.16721778]
[1737498336293,0.18918128,106500.0,106490.0,0.187782]
[1737498336493,0.18918128,106500.0,106490.0,0.548582]
[1737498337398,0.19218128,106500.0,106490.0,0.548582]
[1737498337697,0.19218128,106500.0,106490.0,0.580482]
[1737498338194,0.19818128,106500.0,106490.0,0.581482]
[1737498339693,0.01040928,106500.0,106490.0,0.581482]
[1737498340087,0.01040928,106500.0,106490.0,2.081482]
[1737498343895,0.01040928,106500.0,106490.0,2.08850709]
[1737498344918,0.01040928,106500.0,106490.0,2.081482]
[1737498355506,0.01040928,106500.0,106490.0,2.11434709]
[1737498355806,0.01040928,106500.0,106490.0,2.081482]
[1737498356400,0.01040928,106500.0,106490.0,2.1143473]
[1737498360207,0.06595496,106500.0,106490.0,2.081482]
[1737498360510,0.06595496,106500.0,106490.0,0.581482]
[1737498361112,0.06595496,106500.0,106490.0,2.081482]
[1737498361407,0.01040928,106500.0,106490.0,2.081482]
[1737498361908,0.06595496,106500.0,106490.0,2.081482]
[1737498362206,0.01040928,106500.0,106490.0,2.081482]
[1737498362407,0.15097668,106500.0,106490.0,2.081482]
[1737498364811,0.15097668,106500.0,106490.0,2.12658423]
[1737498365014,0.15097668,106500.0,106490.0,2.15944938]
[1737498368215,0.1495674,106500.0,106490.0,2.15944938]
[1737498369515,0.1495674,106500.0,106490.0,2.21499506]
[1737498369715,0.1495674,106500.0,106490.0,2.15944938]
[1737498370407,0.1495674,106500.0,106490.0,2.38293259]
[1737498374214,0.1485674,106500.0,106490.0,2.38293259]
[1737498374802,0.1465674,106500.0,106490.0,2.38293259]
[1737498375008,0.1485674,106500.0,106490.0,2.38293259]
[1737498377408,0.1485674,106500.0,106490.0,2.85023477]
[1737498377815,0.10631823,106500.0,106490.0,2.85023477]
[1737498378208,0.10631823,106500.0,106490.0,1.44413589]
[1737498378407,0.10631823,106500.0,106490.0,1.41127074]
[1737498378621,0.10631823,106500.0,106490.0,2.91127074]
[1737498378919,0.10631823,106500.0,106490.0,3.01103174]
[1737498380326,0.10631823,106500.0,106490.0,2.91127074]
[1737498381816,0.008,106500.0,106490.0,3.22498918]
[1737498382011,0.008,106500.0,106490.0,3.50435103]
[1737498382205,0.11909136,106500.0,106490.0,0.91821141]
[1737498382408,0.11909136,106500.0,106490.0,0.87310918]
[1737498382409,0.40015536,106500.0,106490.0,0.87310918]
[1737498382813,0.40015536,106500.0,106480.0,0.31402235]
[1737498382814,0.187782,106490.0,106480.0,0.31402235]
[1737498383008,0.24336268,106470.0,106460.0,0.3644314]
[1737498383210,0.65970836,106470.0,106460.0,0.3644314]
[1737498383416,0.187835,106460.0,106450.0,0.44681529]
[1737498383615,0.29892636,106460.0,106450.0,0.44681529]
[1737498383812,0.27256657,106460.0,106450.0,0.44681529]
[1737498384011,0.63336657,106460.0,106450.0,0.44681529]
[1737498384415,0.27256657,106460.0,106450.0,0.44681529]
[1737498384815,0.63336657,106460.0,106450.0,0.44881529]
[1737498385111,0.63336657,106460.0,106450.0,0.23101792]
[1737498388016,0.63336657,106460.0,106450.0,0.006]
[1737498390614,0.63436657,106460.0,106440.0,0.55021775]
[1737498390821,0.08473157,106450.0,106440.0,0.55021775]
[1737498391022,0.27258357,106450.0,106440.0,0.55021775]
[1737498391518,0.63637657,106460.0,106440.0,0.55021775]
[1737498391726,0.63437657,106460.0,106440.0,0.55021775]
[1737498392023,0.74823624,106460.0,106440.0,0.55021775]
[1737498392223,0.66350467,106460.0,106440.0,0.55021775]
[1737498392423,0.74823624,106460.0,106440.0,0.55021775]
[1737498392725,0.74823624,106460.0,106440.0,0.54323903]
[1737498393926,0.74623624,106460.0,106440.0,0.54423903]
[1737498394625,0.74823624,106460.0,106440.0,0.54323903]
[1737498394825,0.74823624,106460.0,106440.0,2.04323903]
[1737498396028,0.27258357,106450.0,106440.0,2.04323903]
[1737498396225,0.187852,106450.0,106440.0,2.04323903]
[1737498396925,0.74823424,106460.0,106440.0,2.04323903]
[1737498397223,0.187852,106450.0,106440.0,2.04423903]
[1737498397822,0.187852,106450.0,106440.0,2.04523903]
[1737498402229,0.19511299,106450.0,106440.0,2.04523903]
[1737498402823,0.19511299,106450.0,106440.0,2.07773903]
[1737498403832,0.187852,106450.0,106440.0,2.07773903]
[1737498406533,0.187852,106450.0,106440.0,2.13333824]
[1737498406933,0.29969567,106460.0,106450.0,0.187852]
[1737498407233,0.11185967,106460.0,106450.0,0.66715121]
[1737498407536,0.11185967,106460.0,106450.0,2.16715121]
[1737498408126,0.16845888,106460.0,106450.0,2.111552]
[1737498408326,0.11285967,106460.0,106450.0,2.111552]
[1737498408532,0.11485967,106460.0,106450.0,2.111552]
[1737498408734,0.11485967,106460.0,106450.0,2.16715121]
[1737498409729,0.11485967,106460.0,106450.0,2.19624392]
[1737498410535,0.11385967,106460.0,106450.0,2.19724392]
[1737498410736,0.002,106460.0,106450.0,2.19724392]
[1737498411533,0.002,106460.0,106450.0,2.20468475]
[1737498412327,0.29981929,106470.0,106450.0,2.01683275]
[1737498412636,0.29981929,106470.0,106460.0,0.548635]
[1737498413435,0.11200029,106470.0,106460.0,0.548635]
[1737498413634,0.11300029,106470.0,106460.0,0.548635]
[1737498413828,0.30869558,106470.0,106460.0,0.548635]
[1737498414734,0.31069558,106470.0,106460.0,0.548635]
[1737498416745,0.31069558,106470.0,106460.0,0.63332692]
[1737498417935,0.14313208,106470.0,106460.0,0.67826521]
[1737498420741,0.14313208,106470.0,106460.0,0.63332692]
[1737498420938,0.00314062,106470.0,106460.0,0.67824253]
[1737498421241,0.11544319,106470.0,106460.0,0.67824253]
[1737498421443,0.11544319,106470.0,106460.0,0.63332692]
[1737498421645,0.11544319,106470.0,106460.0,0.548635]
[1737498423545,0.11444319,106470.0,106460.0,0.548635]
[1737498423742,0.11444319,106470.0,106460.0,2.049635]
[1737498424848,0.11244319,106470.0,106460.0,2.050635]
[1737498426243,0.38495211,106470.0,106460.0,2.050635]
[1737498426442,0.38495211,106470.0,106460.0,1.689835]
[1737498428851,0.74575211,106470.0,106460.0,1.689835]
[1737498429257,0.38495211,106470.0,106460.0,1.689835]
[1737498429457,0.38495211,106470.0,106460.0,0.189835]
[1737498429752,0.3835454,106470.0,106460.0,0.189835]
[1737498430559,0.7443454,106470.0,106460.0,0.189835]
[1737498430756,0.3835454,106470.0,106460.0,0.189835]
[1737498430957,0.3835454,106470.0,106460.0,0.188835]
[1737498431156,0.3905454,106470.0,106460.0,0.188835]
[1737498431668,0.7513454,106470.0,106460.0,0.188835]
[1737498431962,0.3905454,106470.0,106460.0,0.188835]
[1737498433964,0.25055394,106470.0,106460.0,0.188835]
[1737498434165,0.61135394,106470.0,106460.0,0.188835]
[1737498434667,0.25055394,106470.0,106460.0,0.188835]
[1737498435464,0.66695026,106470.0,106460.0,0.188835]
[1737498435771,0.66695026,106470.0,106460.0,0.001]
[1737498436873,0.69825026,106470.0,106460.0,0.001]
[1737498438272,0.51043326,106470.0,106440.0,2.04880262]
[1737498438461,0.24344832,106450.0,106440.0,2.04880262]
[1737498438975,0.27594832,106450.0,106440.0,2.04880262]
[1737498440368,0.27594832,106450.0,106440.0,2.04980262]
[1737498442174,0.27594832,106450.0,106440.0,2.05080262]
[1737498443967,0.41637573,106450.0,106440.0,2.05080262]
[1737498446373,0.41637573,106450.0,106440.0,0.55080262]
[1737498446776,0.4238916,106450.0,106440.0,2.05080262]
[1737498448166,0.4238916,106450.0,106440.0,0.55080262]
[1737498451868,0.59240449,106450.0,106440.0,0.55080262]
[1737498452983,0.59240449,106450.0,106440.0,0.58350262]
[1737498455881,0.59340449,106450.0,106440.0,0.58250262]
[1737498456283,0.64900081,106450.0,106440.0,0.58250262]
[1737498456484,0.64900081,106450.0,106440.0,0.03384062]
[1737498456781,1.00980081,106450.0,106440.0,0.00114062]
[1737498456992,1.01180081,106450.0,106440.0,0.00014062]
[1737498457176,1.01080081,106450.0,106440.0,0.00014062]
[1737498457484,1.01180081,106450.0,106440.0,0.00014062]
[1737498460083,0.89789944,106450.0,106440.0,0.00014062]
[1737498468885,0.187869,106440.0,106430.0,0.032]
[1737498469086,0.55788896,106440.0,106420.0,0.390995]
[1737498469288,0.29907964,106430.0,106420.0,9.5e-05]
[1737498469485,0.69157964,106430.0,106420.0,9.5e-05]
[1737498470694,0.69157964,106430.0,106420.0,0.004095]
[1737498471283,0.69157964,106430.0,106420.0,0.006095]
[1737498471487,0.187904,106420.0,106410.0,0.20052118]
[1737498471684,0.71549296,106420.0,106410.0,0.20052118]
[1737498471879,0.74869296,106420.0,106410.0,0.20052118]
[1737498473099,0.74969296,106420.0,106410.0,0.16872118]
[1737498473286,0.78019296,106420.0,106410.0,0.16872118]
[1737498474791,0.78019296,106420.0,106410.0,0.00014062]
[1737498475182,0.78319296,106420.0,106410.0,0.00014062]
[1737498475690,0.78019296,106420.0,106410.0,0.00014062]
[1737498475890,0.78319296,106420.0,106410.0,0.00014062]
[1737498476090,0.79109154,106420.0,106410.0,0.00014062]
[1737498480392,0.187922,106410.0,106400.0,0.09998181]
[1737498480594,0.65991464,106410.0,106400.0,0.09998181]
[1737498481888,0.65991464,106410.0,106400.0,0.10098181]
[1737498482894,0.29911464,106410.0,106400.0,0.10098181]
[1737498483592,0.18794,106400.0,106390.0,1.55104529]
[1737498483895,0.29913264,106400.0,106390.0,1.91184529]
[1737498484095,0.29913264,106400.0,106390.0,1.55104529]
[1737498484886,0.29913264,106400.0,106390.0,0.05504529]
[1737498485396,0.29913264,106400.0,106390.0,1.55504529]
[1737498485695,0.29913264,106400.0,106390.0,1.55704529]
[1737498486098,0.29913264,106400.0,106390.0,0.05704529]
[1737498486590,0.29913264,106400.0,106390.0,1.55704529]
[1737498486999,0.29913264,106400.0,106390.0,1.91784529]
[1737498487197,0.29913264,106400.0,106390.0,1.55704529]
[1737498487897,0.29913264,106400.0,106390.0,0.05704529]
[1737498489299,0.50311352,106400.0,106390.0,0.05704529]
[1737498491295,0.55870984,106400.0,106390.0,0.0383]
[1737498491494,0.50311352,106400.0,106390.0,0.0383]
[1737498493290,0.44701586,106400.0,106390.0,0.0383]
[1737498493599,0.80781586,106400.0,106390.0,0.0383]
[1737498494487,0.80781586,106400.0,106390.0,0.0353]
[1737498495100,0.80781586,106400.0,106390.0,0.0333]
[1737498497198,0.83590756,106400.0,106390.0,0.0333]
[1737498499098,0.83590756,106400.0,106390.0,0.0643]
[1737498499306,0.47510756,106400.0,106390.0,1.5643]
[1737498500402,0.47510756,106400.0,106390.0,0.0643]
[1737498511912,0.47510756,106400.0,106390.0,0.0333]
[1737498516617,0.47510756,106400.0,106390.0,0.221258]
[1737498517606,0.30693493,106400.0,106390.0,0.221258]
[1737498520013,0.25133861,106400.0,106390.0,0.221258]
[1737498520614,0.30693493,106400.0,106390.0,0.221258]
[1737498520922,0.25133861,106400.0,106390.0,0.221258]
[1737498521424,0.47186425,106410.0,106400.0,0.187941]
[1737498521721,0.53564356,106410.0,106390.0,0.582052]
[1737498521921,0.24353732,106400.0,106390.0,0.62716732]
[1737498522123,0.24353732,106400.0,106390.0,0.582052]
[1737498522919,0.24353732,106400.0,106390.0,0.62716536]
[1737498523422,0.24353732,106400.0,106390.0,0.62616536]
[1737498523616,0.24353732,106400.0,106390.0,0.581052]
[1737498523818,0.24353732,106400.0,106390.0,0.62616263]
[1737498524019,0.24353732,106400.0,106390.0,0.62716263]
[1737498524524,0.24353732,106400.0,106390.0,0.59006161]
[1737498526319,0.24353732,106400.0,106390.0,0.6351662]
[1737498526621,0.24353732,106400.0,106390.0,0.59006161]
[1737498526824,0.41211562,106400.0,106390.0,0.59006161]
[1737498527227,0.41211562,106400.0,106390.0,0.63516351]
[1737498528422,0.1685783,106400.0,106390.0,0.69075983]
[1737498528629,0.1685783,106400.0,106390.0,0.72345983]
[1737498529920,0.1685783,106400.0,106390.0,2.33345983]
[1737498531730,0.14048948,106400.0,106390.0,2.14550783]
[1737498531930,0.14048948,106400.0,106390.0,2.42744283]
[1737498535335,0.1964742,106400.0,106390.0,2.59602339]
[1737498536743,0.16871892,106420.0,106410.0,0.187923]
[1737498536939,0.16871892,106420.0,106410.0,1.01022122]
[1737498537144,0.16871892,106420.0,106410.0,2.57442122]
[1737498537939,0.17671892,106420.0,106410.0,2.57442122]
[1737498538439,0.17471892,106420.0,106410.0,2.57442122]
[1737498538742,0.17271892,106420.0,106410.0,2.58442122]
[1737498539239,0.00414062,106420.0,106410.0,2.58442122]
[1737498540337,0.00114062,106420.0,106410.0,2.58442122]
[1737498540645,0.00014062,106420.0,106410.0,2.58442122]
[1737498540847,1e-08,106420.0,106410.0,2.64001754]
[1737498541145,1e-08,106420.0,106410.0,2.74903784]
[1737498542042,1e-08,106420.0,106410.0,2.75503784]
[1737498542242,1e-08,106420.0,106410.0,1.25503784]
[1737498542645,1e-08,106420.0,106410.0,2.75503784]
[1737498543345,1e-08,106420.0,106410.0,2.9236184]
[1737498543753,1e-08,106420.0,106410.0,2.93182051]
[1737498543948,1e-08,106420.0,106410.0,3.02579222]
[1737498544150,1e-08,106420.0,106410.0,3.32579222]
[1737498544450,1e-08,106420.0,106410.0,3.02579222]
[1737498549942,1e-08,106420.0,106410.0,3.32579222]
[1737498551457,1e-08,106420.0,106410.0,3.53095222]
[1737498551954,1e-08,106420.0,106410.0,3.83095222]
[1737498552156,1e-08,106420.0,106410.0,3.53095222]
[1737498552356,1e-08,106420.0,106410.0,3.41975958]
[1737498552558,1e-08,106420.0,106410.0,3.53095222]
[1737498555061,1e-08,106420.0,106410.0,3.54507222]
[1737498555263,1e-08,106420.0,106410.0,3.84507222]
[1737498556351,0.0625,106450.0,106410.0,3.65714922]
[1737498556548,0.0625,106450.0,106440.0,0.96506632]
[1737498556761,0.0625,106450.0,106440.0,0.97506632]
[1737498556961,0.0625,106450.0,106440.0,2.47506632]
[1737498557652,0.0685,106450.0,106440.0,2.47506632]
[1737498558064,0.0625,106450.0,106440.0,2.47506632]
[1737498558265,0.0685,106450.0,106440.0,2.47606632]
[1737498558460,0.0685,106450.0,106440.0,2.62560786]
[1737498558769,1e-06,106450.0,106440.0,2.62560786]
[1737498559261,0.20051892,106460.0,106450.0,0.187852]
[1737498559560,0.20051892,106460.0,106450.0,0.60424832]
[1737498560062,0.03194062,106460.0,106450.0,0.60424832]
[1737498560262,0.03194062,106460.0,106450.0,0.64424832]
[1737498560767,0.03994062,106460.0,106450.0,0.64524832]
[1737498562265,0.03994062,106460.0,106450.0,0.589652]
[1737498562461,0.03994062,106460.0,106450.0,2.14524832]
[1737498563163,0.03994062,106460.0,106450.0,2.089652]
[1737498563366,0.03994062,106460.0,106450.0,2.14524832]
[1737498563754,0.03994062,106460.0,106450.0,2.15329451]
[1737498581072,0.03994062,106460.0,106450.0,2.09769819]
[1737498581278,0.03994062,106460.0,106450.0,2.15329451]
[1737498581581,0.03994062,106460.0,106450.0,2.19831998]
[1737498583575,0.03994062,106460.0,106450.0,2.22891998]
[1737498584491,0.00814062,106460.0,106450.0,2.22891998]
[1737498584988,0.1482846,106460.0,106450.0,2.39750054]
[1737498588275,0.1482846,106460.0,106450.0,2.42980054]
[1737498588886,0.1482846,106460.0,106450.0,0.92980054]
[1737498589383,0.1482846,106460.0,106450.0,2.42980054]
[1737498595579,0.1482846,106460.0,106450.0,0.92980054]
[1737498596087,0.1482846,106460.0,106450.0,2.42980054]
[1737498597790,0.1482846,106460.0,106450.0,2.65481846]
[1737498601796,0.1482846,106460.0,106450.0,2.42980054]
[1737498603688,0.1482846,106460.0,106450.0,2.37420422]
[1737498605305,0.1482846,106460.0,106450.0,2.42980054]
[1737498608395,0.1482846,106460.0,106450.0,0.92980054]
[1737498608792,3e-07,106470.0,106450.0,0.94707758]
[1737498608998,0.19644811,106490.0,106480.0,0.1878]
[1737498609193,0.19644811,106490.0,106480.0,1.01002179]
[1737498609393,0.19644811,106490.0,106480.0,1.07522179]
[1737498609790,0.19644811,106490.0,106480.0,1.13081811]
[1737498610301,0.19644811,106490.0,106480.0,1.07522179]
[1737498610504,0.19644811,106490.0,106480.0,1.13081811]
[1737498610797,0.19844811,106490.0,106480.0,1.13081811]
[1737498611696,0.20344811,106490.0,106480.0,1.13081811]
[1737498611897,0.20344811,106490.0,106480.0,1.16191811]
[1737498613387,0.00840918,106490.0,106480.0,1.33049867]
[1737498613790,0.00840918,106490.0,106480.0,1.17428056]
[1737498613996,0.2517875,106490.0,106480.0,0.35638056]
[1737498614193,0.2835875,106490.0,106480.0,0.16858056]
[1737498614394,0.22799118,106490.0,106480.0,0.35638056]
[1737498614599,0.58879118,106490.0,106480.0,0.35638056]
[1737498614800,0.6443875,106490.0,106480.0,0.16858056]
[1737498617204,0.65261596,106490.0,106480.0,0.16858056]
[1737498618004,0.65261596,106490.0,106470.0,0.54875162]
[1737498618005,0.1878,106480.0,106470.0,0.54875162]
[1737498618195,0.24339632,106480.0,106470.0,0.54875162]
[1737498619100,0.24539632,106480.0,106470.0,0.54875162]
[1737498619700,0.24639632,106480.0,106470.0,0.54875162]
[1737498619890,0.24639632,106480.0,106470.0,2.04875162]
[1737498620401,0.1908,106480.0,106470.0,2.04875162]
[1737498621797,0.30291324,106480.0,106470.0,2.04875162]
[1737498622204,0.30291324,106480.0,106470.0,2.10434794]
[1737498622408,0.33601324,106480.0,106470.0,2.04875162]
[1737498628309,0.39160956,106480.0,106470.0,2.04875162]
[1737498628507,0.33601324,106480.0,106470.0,2.04875162]
[1737498633313,0.33601324,106480.0,106470.0,2.08145162]
[1737498636111,0.33601324,106480.0,106470.0,1.72065162]
[1737498636307,0.44720588,106480.0,106470.0,1e-08]
[1737498636509,1.10800588,106480.0,106470.0,1e-08]
[1737498636711,0.86368896,106480.0,106450.0,0.16858056]
[1737498637015,1.02062764,106460.0,106450.0,0.16858056]
[1737498637520,0.187852,106450.0,106440.0,0.22501792]
[1737498637727,0.66580383,106450.0,106440.0,0.22501792]
[1737498638822,0.66580383,106450.0,106440.0,0.22901792]
[1737498639027,0.66680383,106450.0,106440.0,0.23701792]
[1737498639429,0.66580383,106450.0,106440.0,0.22901792]
[1737498639630,0.67080383,106450.0,106440.0,0.22901792]
[1737498640825,0.67080383,106450.0,106440.0,0.22501792]
[1737498641025,0.67280383,106450.0,106440.0,0.22501792]
[1737498641226,0.67280383,106450.0,106430.0,0.28072505]
[1737498641227,0.18787,106440.0,106430.0,0.00014062]
[1737498641527,0.63342183,106440.0,106430.0,0.00014062]
[1737498642733,0.63542183,106440.0,106430.0,0.00014062]
[1737498644235,0.27462183,106440.0,106430.0,0.00014062]
[1737498645236,0.52640705,106440.0,106430.0,0.00014062]
[1737498648432,0.53516486,106440.0,106430.0,0.00014062]
[1737498648632,0.39520945,106440.0,106430.0,0.00014062]
[1737498650034,0.75600945,106440.0,106430.0,0.00014062]
[1737498650642,0.39520945,106440.0,106430.0,0.00014062]
[1737498656936,0.84076128,106440.0,106430.0,6.2e-07]
[1737498657139,0.95723096,106440.0,106430.0,6.2e-07]
[1737498657631,0.187923,106410.0,106400.0,0.07468479]
[1737498657839,0.27267483,106410.0,106400.0,0.07468479]
[1737498658541,0.27276645,106410.0,106400.0,0.07468479]
[1737498658729,0.27376645,106410.0,106400.0,0.08268479]
[1737498658930,0.71931828,106410.0,106400.0,0.0405]
[1737498659136,0.63456645,106410.0,106400.0,0.0405]
[1737498659640,0.71922666,106410.0,106400.0,0.012]
[1737498659835,0.78472666,106410.0,106400.0,0.012]
[1737498660037,0.78372666,106410.0,106400.0,0.006]
[1737498660344,0.78372666,106410.0,106400.0,0.003]
[1737498661843,0.97932615,106410.0,106400.0,0.003]
[1737498663338,0.187958,106390.0,106380.0,0.0325]
[1737498663545,0.63361879,106390.0,106380.0,0.0325]
[1737498663749,0.63361879,106390.0,106380.0,1.5325]
[1737498665452,0.63361879,106390.0,106380.0,1.5365]
[1737498665642,0.99441879,106390.0,106380.0,0.004]
[1737498665953,0.99541879,106390.0,106380.0,0.012]
[1737498666338,0.99530983,106390.0,106380.0,0.012]
[1737498666742,0.99530983,106390.0,106380.0,0.008]
[1737498666945,0.187994,106370.0,106360.0,1.8943]
[1737498667144,0.27283432,106370.0,106360.0,1.8943]
[1737498667651,0.27283432,106370.0,106360.0,0.0335]
[1737498668852,0.27383432,106370.0,106360.0,0.0425]
[1737498669249,0.27483432,106370.0,106360.0,0.0485]
[1737498670449,0.27483432,106370.0,106360.0,0.0445]
[1737498670450,0.27383432,106370.0,106360.0,0.0445]
[1737498671555,0.356604,106370.0,106360.0,0.0385]
[1737498671758,0.356604,106370.0,106360.0,0.0405]
[1737498672249,0.717404,106370.0,106360.0,0.0405]
[1737498672450,0.71731551,106370.0,106360.0,0.0405]
[1737498673148,0.71731551,106370.0,106360.0,0.007]
[1737498673353,0.188029,106350.0,106340.0,0.03279296]
[1737498673648,0.27285241,106350.0,106340.0,0.03279296]
[1737498673849,0.27285241,106350.0,106340.0,1.53279296]
[1737498674157,0.27285241,106350.0,106340.0,1.89359296]
[1737498674347,0.27285241,106350.0,106340.0,1.53279296]
[1737498674652,0.27285241,106350.0,106340.0,1.89359296]
[1737498674853,0.27385241,106350.0,106340.0,1.53679296]
[1737498675050,0.27385241,106350.0,106340.0,1.89759296]
[1737498675447,0.35853266,106350.0,106340.0,1.53679296]
[1737498675650,0.35753266,106350.0,106340.0,0.03879296]
[1737498676051,0.35753266,106350.0,106340.0,0.00609296]
[1737498677461,0.36591494,106350.0,106340.0,0.00609296]
[1737498677960,0.36602691,106350.0,106340.0,0.00609296]
[1737498678147,0.36603176,106350.0,106340.0,0.00609296]
[1737498678351,0.36601182,106350.0,106340.0,0.00609296]
[1737498678555,0.36591494,106350.0,106340.0,0.00609296]
[1737498680465,0.72671494,106350.0,106340.0,0.006]
[1737498681756,0.72671494,106350.0,106340.0,0.004]
[1737498682062,0.72671494,106350.0,106340.0,0.005]
[1737498682263,0.72679696,106350.0,106340.0,0.002]
[1737498682463,0.72671494,106350.0,106340.0,0.002]
[1737498684959,0.92231443,106350.0,106340.0,0.002]
[1737498685754,0.92239685,106350.0,106340.0,0.002]
[1737498685956,0.92238332,106350.0,106340.0,0.002]
[1737498686165,0.92240997,106350.0,106340.0,0.002]
[1737498686353,0.92231443,106350.0,106340.0,0.002]
[1737498688267,0.188064,106330.0,106320.0,1.5334]
[1737498688567,0.63361583,106330.0,106320.0,0.0334]
[1737498689357,0.27281583,106330.0,106320.0,0.0334]
[1737498689559,0.27381583,106330.0,106320.0,0.0414]
[1737498690858,0.27381583,106330.0,106320.0,0.0444]
[1737498692661,0.46860052,106330.0,106320.0,0.0444]
[1737498697269,0.46860052,106330.0,106320.0,0.04480205]
[1737498697470,0.39380946,106330.0,106320.0,0.04480205]
[1737498699068,0.47856129,106330.0,106320.0,0.01140205]
[1737498699369,0.39380946,106330.0,106320.0,0.01140205]
[1737498699765,0.39390973,106330.0,106320.0,0.04470205]
[1737498699965,0.39392164,106330.0,106320.0,0.04470205]
[1737498700167,0.39380946,106330.0,106320.0,0.04470205]
[1737498700368,0.39392561,106330.0,106320.0,0.04470205]
[1737498700676,0.39380946,106330.0,106320.0,0.07660205]
[1737498700872,0.39380946,106330.0,106320.0,0.07460205]
[1737498701170,0.39280946,106330.0,106320.0,0.06760205]
[1737498702176,0.42145933,106330.0,106320.0,0.06760205]
[1737498703063,0.4215337,106330.0,106320.0,0.06760205]
[1737498703273,0.42145933,106330.0,106320.0,0.06760205]
[1737498703667,0.44820584,106330.0,106320.0,0.06760205]
[1737498706572,0.44830807,106330.0,106320.0,0.06760205]
[1737498706774,0.61652483,106330.0,106320.0,0.06760205]
[1737498706970,0.61649279,106330.0,106320.0,0.06760205]
[1737498707272,0.61640758,106330.0,106320.0,0.06760205]
[1737498711179,0.47645217,106330.0,106320.0,0.06760205]
[1737498712167,0.47656934,106330.0,106320.0,0.06760205]
[1737498712473,0.47645217,106330.0,106320.0,0.06760205]
[1737498713374,0.47645217,106330.0,106320.0,0.03570205]
[1737498714973,0.30825043,106330.0,106320.0,0.03570205]
[1737498715675,0.3083616,106330.0,106320.0,0.03570205]
[1737498715874,0.30825043,106330.0,106320.0,0.03570205]
[1737498720378,0.66905043,106330.0,106320.0,0.03570205]
[1737498721779,0.19675209,106330.0,106320.0,0.39650205]
[1737498721984,0.24393042,106330.0,106320.0,0.42910205]
[1737498722184,0.24393042,106330.0,106320.0,0.66234474]
[1737498722385,0.00011725,106330.0,106320.0,0.66234474]
[1737498722579,0.05586642,106330.0,106320.0,0.66234474]
[1737498722779,0.25275723,106340.0,106320.0,0.66234474]
[1737498722780,0.18818862,106340.0,106320.0,0.66234474]
[1737498722974,0.00014062,106340.0,106330.0,0.580264]
[1737498723178,0.38307493,106350.0,106340.0,0.188046]
[1737498723478,0.188036,106350.0,106340.0,2.081446]
[1737498723887,0.188036,106350.0,106340.0,2.18229888]
[1737498724084,0.188036,106350.0,106340.0,2.12654971]
[1737498724386,0.188036,106350.0,106340.0,2.13719517]
[1737498724887,0.188036,106350.0,106340.0,2.14575961]
[1737498725790,0.190036,106350.0,106340.0,2.09001044]
[1737498725985,0.190036,106350.0,106340.0,2.12191044]
[1737498726391,0.191036,106350.0,106340.0,2.113346]
[1737498726975,0.191036,106350.0,106340.0,0.613346]
[1737498727176,0.30318294,106350.0,106340.0,0.613346]
[1737498727479,0.30318294,106350.0,106340.0,2.113346]
[1737498727682,0.30318294,106350.0,106340.0,1.9253]
[1737498728087,0.30318294,106350.0,106340.0,0.4253]
[1737498728686,0.188046,106340.0,106330.0,0.39268]
[1737498728983,0.188046,106340.0,106330.0,0.0314]
[1737498729288,0.0848772,106340.0,106320.0,0.84073858]
[1737498729485,0.188064,106330.0,106320.0,0.84073858]
[1737498729689,0.188064,106330.0,106320.0,0.65266058]
[1737498730077,0.188064,106330.0,106320.0,0.58636058]
[1737498730286,0.2729412,106330.0,106320.0,0.58636058]